fUSD/lending_fUSD_20250415
["ID","MTS","AMOUNT","RATE_DAILY","PERIOD"]
[358075036,1744693847066,-451.91904965,0.00017998,2]
[358075037,1744693847075,-524.86887409,0.00017998,2]
[358075038,1744693847083,-500.0,0.00017998,2]
[358075039,1744693847092,-500.0,0.00017998,2]
[358075040,1744693847101,-500.0,0.00017998,2]
[358075041,1744693847109,-500.0,0.00017998,2]
[358075042,1744693847119,-500.0,0.00017998,2]
[358075043,1744693847128,-500.0,0.00017998,2]
[358075044,1744693847138,-500.0,0.00017998,2]
[358075045,1744693847147,-500.0,0.00017998,2]
[358075046,1744693847156,-500.0,0.00017998,2]
[358075047,1744693847166,-500.0,0.00017998,2]
[358075048,1744693847176,-500.0,0.00017998,2]
[358075049,1744693847186,-500.0,0.00017998,2]
[358075050,1744693847195,-500.0,0.00017998,2]
[358075051,1744693847205,-500.0,0.00017998,2]
[358075052,1744693847214,-500.0,0.00017998,2]
[358075053,1744693847223,-500.0,0.00017998,2]
[358075054,1744693847233,-329.62142676,0.00017998,2]
[358075055,1744693847242,-500.0,0.00017998,2]
[358075056,1744693847251,-500.0,0.00017998,2]
[358075057,1744693847260,-500.0,0.00017998,2]
[358075058,1744693847269,-637.40957839,0.00017998,2]
[358075059,1744693847279,-500.0,0.00017998,2]
[358075060,1744693847288,-500.0,0.00017998,2]
[358075061,1744693847296,-500.0,0.00017998,2]
[358075062,1744693847306,-626.35218113,0.00017998,2]
[358075063,1744693847315,-500.0,0.00017998,2]
[358075064,1744693847324,-500.0,0.00017998,2]
[358075065,1744693847332,-500.0,0.00017998,2]
[358075066,1744693847341,-500.0,0.00017998,2]
[358075067,1744693847351,-500.0,0.00017998,2]
[358075068,1744693847361,-500.0,0.00017998,2]
[358075069,1744693847372,-426.578445,0.00017998,2]
[358075070,1744693847382,-500.0,0.00017998,2]
[358075071,1744693847391,-500.0,0.00017998,2]
[358075072,1744693847401,-500.0,0.00017999,2]
[358075073,1744693847410,-156.845465,0.00017999,2]
[358075074,1744693847419,-151.419291,0.00017999,2]
[358075075,1744693847429,-516.3159874,0.00017999,2]
[358075076,1744693847439,-151.0,0.00017999,2]
[358075077,1744693847450,-500.0,0.00017999,2]
[358075078,1744693847459,-500.0,0.00017999,2]
[358075079,1744693847470,-500.0,0.00017999,2]
[358075080,1744693847478,-500.0,0.00017999,2]
[358075081,1744693847487,-500.0,0.00017999,2]
[358075082,1744693847495,-500.0,0.00017999,2]
[358075083,1744693847504,-500.0,0.00017999,2]
[358075084,1744693847513,-500.0,0.00017999,2]
[358075085,1744693847523,-500.0,0.00017999,2]
[358075086,1744693847532,-500.0,0.00017999,2]
[358075087,1744693847542,-500.0,0.00017999,2]
[358075088,1744693847551,-500.0,0.00017999,2]
[358075089,1744693847560,-500.0,0.00017999,2]
[358075090,1744693847570,-500.0,0.00017999,2]
[358075091,1744693847579,-646.80222946,0.00017999,2]
[358075092,1744693847589,-500.0,0.00017999,2]
[358075093,1744693847599,-500.0,0.00017999,2]
[358075094,1744693847609,-151.0,0.00017999,2]
[358075095,1744693847619,-291.011124,0.00017999,2]
[358075096,1744693847629,-426.5571212,0.00017999,2]
[358075097,1744693847639,-304.77423643,0.00017999,2]
[358075098,1744693847648,-151.0,0.00017999,2]
[358075099,1744693847657,-151.0,0.00017999,2]
[358075100,1744693847667,-239.3183,0.00017999,2]
[358075101,1744693847677,-151.0,0.00017999,2]
[358075102,1744693847687,-153.313317,0.00017999,2]
[358075103,1744693847697,-427.5,0.00017999,2]
[358075104,1744693847707,-427.5,0.00017999,2]
[358075105,1744693847716,-154.927829,0.00017999,2]
[358075106,1744693847726,-151.0,0.00017999,2]
[358075107,1744693847735,-152.531606,0.00017999,2]
[358075108,1744693847744,-151.0,0.00017999,2]
[358075109,1744693847752,-151.0,0.00017999,2]
[358075110,1744693847761,-500.0,0.00017999,2]
[358075111,1744693847770,-500.0,0.00017999,2]
[358075112,1744693847779,-500.0,0.00017999,2]
[358075113,1744693847787,-437.32,0.00017999,2]
[358075114,1744693847796,-166.24842347,0.00017999,2]
[358075115,1744693847805,-500.0,0.00017999,2]
[358075116,1744693847814,-500.0,0.00017999,2]
[358075117,1744693847823,-151.0,0.00017999,2]
[358075118,1744693847832,-151.0,0.00017999,2]
[358075119,1744693847841,-213.892963,0.00017999,2]
[358075120,1744693847849,-500.0,0.00017999,2]
[358075121,1744693847858,-500.0,0.00017999,2]
[358075122,1744693847866,-500.0,0.00017999,2]
[358075123,1744693847875,-500.0,0.00017999,2]
[358075124,1744693847884,-500.0,0.00017999,2]
[358075125,1744693847894,-500.0,0.00017999,2]
[358075126,1744693847902,-151.0,0.00017999,2]
[358075127,1744693847909,-500.0,0.00017999,2]
[358075128,1744693847917,-500.0,0.00017999,2]
[358075129,1744693847926,-500.0,0.00017999,2]
[358075130,1744693847936,-151.0,0.00017999,2]
[358075131,1744693847945,-151.0,0.00017999,2]
[358075132,1744693847955,-676.0,0.00017999,2]
[358075133,1744693847964,-676.0,0.00017999,2]
[358075134,1744693847974,-676.0,0.00017999,2]
[358075135,1744693847984,-676.0,0.00017999,2]
[358075136,1744693847993,-676.0,0.00017999,2]
[358075137,1744693848003,-676.0,0.00017999,2]
[358075138,1744693848012,-676.0,0.00017999,2]
[358075139,1744693848022,-676.0,0.00017999,2]
[358075140,1744693848032,-676.0,0.00017999,2]
[358075141,1744693848042,-676.0,0.00017999,2]
[358075142,1744693848052,-676.0,0.00017999,2]
[358075143,1744693848062,-676.0,0.00017999,2]
[358075144,1744693848072,-676.0,0.00017999,2]
[358075145,1744693848083,-676.0,0.00017999,2]
[358075146,1744693848093,-676.0,0.00017999,2]
[358075147,1744693848103,-676.0,0.00017999,2]
[358075148,1744693848112,-676.0,0.00017999,2]
[358075149,1744693848122,-676.0,0.00017999,2]
[358075150,1744693848133,-676.0,0.00017999,2]
[358075151,1744693848144,-676.0,0.00017999,2]
[358075152,1744693848155,-676.22327992,0.00017999,2]
[358075153,1744693848166,-500.0,0.00017999,2]
[358075154,1744693848176,-500.0,0.00017999,2]
[358075155,1744693848186,-500.0,0.00017999,2]
[358075156,1744693848197,-500.0,0.00017999,2]
[358075157,1744693848207,-500.0,0.00017999,2]
[358075158,1744693848217,-500.0,0.00017999,2]
[358075159,1744693848227,-500.0,0.00017999,2]
[358075160,1744693848236,-500.0,0.00017999,2]
[358075161,1744693848247,-500.0,0.00017999,2]
[358075162,1744693848256,-500.0,0.00017999,2]
[358075163,1744693848266,-500.0,0.00017999,2]
[358075164,1744693848276,-500.0,0.00017999,2]
[358075165,1744693848287,-500.0,0.00017999,2]
[358075166,1744693848298,-500.0,0.00017999,2]
[358075167,1744693848308,-500.0,0.00017999,2]
[358075168,1744693848318,-500.0,0.00017999,2]
[358075169,1744693848328,-206.88331683,0.00017999,2]
[358075170,1744693848338,-151.0,0.00017999,2]
[358075171,1744693848348,-151.0,0.00017999,2]
[358075172,1744693848362,-500.0,0.00017999,2]
[358075173,1744693848373,-500.0,0.00017999,2]
[358075174,1744693848382,-500.0,0.00017999,2]
[358075175,1744693848391,-500.0,0.00017999,2]
[358075176,1744693848402,-151.0,0.00017999,2]
[358075177,1744693848411,-500.0,0.00017999,2]
[358075178,1744693848421,-500.0,0.00017999,2]
[358075179,1744693848431,-151.0,0.00017999,2]
[358075180,1744693848443,-500.0,0.00017999,2]
[358075181,1744693848453,-500.0,0.00017999,2]
[358075182,1744693848462,-256.89,0.00017999,2]
[358075183,1744693848471,-151.0,0.00017999,2]
[358075184,1744693848480,-151.0,0.00017999,2]
[358075185,1744693848489,-151.0,0.00017999,2]
[358075186,1744693848498,-500.0,0.00017999,2]
[358075187,1744693848508,-500.0,0.00017999,2]
[358075188,1744693848518,-500.0,0.00017999,2]
[358075189,1744693848528,-500.0,0.00017999,2]
[358075190,1744693848538,-358.54,0.00017999,2]
[358075191,1744693848717,-213.349934,0.00017999,2]
[358075192,1744693848728,-11016.4,0.00017999,2]
[358075193,1744693848738,-11016.4,0.00017999,2]
[358075194,1744693848748,-11016.4,0.00017999,2]
[358075195,1744693848758,-11016.4,0.00017999,2]
[358075196,1744693848768,-11016.4,0.00017999,2]
[358075197,1744693848778,-11016.4,0.00017999,2]
[358075198,1744693848787,-11016.4,0.00017999,2]
[358075199,1744693848797,-11016.4,0.00017999,2]
[358075200,1744693848808,-11016.4,0.00017999,2]
[358075201,1744693848817,-11016.4,0.00017999,2]
[358075202,1744693848827,-11016.4,0.00017999,2]
[358075203,1744693848837,-11016.4,0.00017999,2]
[358075204,1744693848847,-11016.4,0.00017999,2]
[358075205,1744693848857,-11016.4,0.00017999,2]
[358075206,1744693848867,-213.349934,0.00017999,2]
[358075207,1744693848877,-11016.4,0.00017999,2]
[358075208,1744693848887,-11016.4,0.00017999,2]
[358075209,1744693848899,-11016.4,0.00017999,2]
[358075210,1744693848910,-11016.4,0.00017999,2]
[358075211,1744693848920,-11016.4,0.00017999,2]
[358075212,1744693848931,-11016.4,0.00017999,2]
[358075213,1744693848942,-11016.58547024,0.00017999,2]
[358075214,1744693848952,-500.0,0.00017999,2]
[358075215,1744693848962,-500.0,0.00017999,2]
[358075216,1744693848972,-500.0,0.00017999,2]
[358075217,1744693848981,-500.0,0.00017999,2]
[358075218,1744693848992,-500.0,0.00017999,2]
[358075219,1744693849001,-500.0,0.00017999,2]
[358075220,1744693849011,-500.0,0.00017999,2]
[358075221,1744693849022,-500.0,0.00017999,2]
[358075222,1744693849032,-609.82,0.00017999,2]
[358075223,1744693849042,-584.30926,0.00017999,2]
[358075224,1744693849051,-584.30926,0.00017999,2]
[358075225,1744693849062,-500.0,0.00017999,2]
[358075226,1744693849072,-500.0,0.00017999,2]
[358075227,1744693849082,-500.0,0.00017999,2]
[358075228,1744693849092,-380.84,0.00017999,2]
[358075229,1744693849101,-151.0,0.00017999,2]
[358075230,1744693849110,-151.0,0.00017999,2]
[358075231,1744693849120,-151.0,0.00017999,2]
[358075232,1744693849130,-151.0,0.00017999,2]
[358075233,1744693849140,-151.0,0.00017999,2]
[358075234,1744693849150,-151.0,0.00017999,2]
[358075235,1744693849159,-151.0,0.00017999,2]
[358075236,1744693849169,-151.0,0.00017999,2]
[358075237,1744693849179,-151.0,0.00017999,2]
[358075238,1744693849189,-500.0,0.00017999,2]
[358075239,1744693849201,-500.0,0.00017999,2]
[358075240,1744693849212,-500.0,0.00017999,2]
[358075241,1744693849222,-500.0,0.00017999,2]
[358075242,1744693849231,-500.0,0.00017999,2]
[358075243,1744693849240,-500.0,0.00017999,2]
[358075244,1744693849249,-500.0,0.00017999,2]
[358075245,1744693849259,-500.0,0.00017999,2]
[358075246,1744693849269,-500.0,0.00017999,2]
[358075247,1744693849278,-500.0,0.00017999,2]
[358075248,1744693849287,-173.33,0.00017999,2]
[358075249,1744693849296,-500.0,0.00017999,2]
[358075250,1744693849305,-500.0,0.00017999,2]
[358075251,1744693849315,-151.0,0.00017999,2]
[358075252,1744693849324,-500.0,0.00017999,2]
[358075253,1744693849333,-500.0,0.00017999,2]
[358075254,1744693849342,-500.0,0.00017999,2]
[358075255,1744693849351,-500.0,0.00017999,2]
[358075256,1744693849362,-500.0,0.00017999,2]
[358075257,1744693849374,-500.0,0.00017999,2]
[358075258,1744693849383,-500.0,0.00017999,2]
[358075259,1744693849392,-500.0,0.00017999,2]
[358075260,1744693849401,-500.0,0.00017999,2]
[358075261,1744693849411,-500.0,0.00017999,2]
[358075262,1744693849421,-500.0,0.00017999,2]
[358075263,1744693849430,-500.0,0.00017999,2]
[358075264,1744693849439,-500.0,0.00017999,2]
[358075265,1744693849449,-500.0,0.00017999,2]
[358075266,1744693849459,-500.0,0.00017999,2]
[358075267,1744693849468,-644.32,0.00017999,2]
[358075268,1744693849478,-213.39278052,0.00017999,2]
[358075269,1744693849487,-500.0,0.00017999,2]
[358075270,1744693849502,-500.0,0.00017999,2]
[358075271,1744693849514,-500.0,0.00017999,2]
[358075272,1744693849524,-500.0,0.00017999,2]
[358075273,1744693849533,-500.0,0.00017999,2]
[358075274,1744693849542,-500.0,0.00017999,2]
[358075275,1744693849551,-500.0,0.00017999,2]
[358075276,1744693849561,-500.0,0.00017999,2]
[358075277,1744693849570,-500.0,0.00017999,2]
[358075278,1744693849579,-500.0,0.00017999,2]
[358075279,1744693849588,-500.0,0.00017999,2]
[358075280,1744693849597,-500.0,0.00017999,2]
[358075281,1744693849606,-500.0,0.00017999,2]
[358075282,1744693849616,-500.0,0.00017999,2]
[358075283,1744693849625,-500.0,0.00017999,2]
[358075284,1744693849634,-500.0,0.00017999,2]
[358075285,1744693849643,-500.0,0.00017999,2]
[358075286,1744693849652,-405.62504,0.00017999,2]
[358075287,1744693849660,-500.0,0.00017999,2]
[358075288,1744693849669,-500.0,0.00017999,2]
[358075289,1744693849678,-151.0,0.00017999,2]
[358075290,1744693849688,-1758.536249,0.00017999,2]
[358075291,1744693849697,-1758.536249,0.00017999,2]
[358075292,1744693849707,-1758.536249,0.00017999,2]
[358075293,1744693849717,-1758.536249,0.00017999,2]
[358075294,1744693849726,-1000.0,0.00017999,2]
[358075295,1744693849737,-1000.0,0.00017999,2]
[358075296,1744693849746,-1000.0,0.00017999,2]
[358075297,1744693849755,-1113.21086298,0.00017999,2]
[358075298,1744693849765,-151.0,0.00017999,2]
[358075299,1744693849774,-500.0,0.00017999,2]
[358075300,1744693849784,-500.0,0.00017999,2]
[358075301,1744693849793,-500.0,0.00017999,2]
[358075302,1744693849802,-151.0,0.00017999,2]
[358075303,1744693849811,-500.0,0.00017999,2]
[358075304,1744693849820,-500.0,0.00017999,2]
[358075305,1744693849829,-151.0,0.00017999,2]
[358075306,1744693849838,-151.0,0.00017999,2]
[358075307,1744693849847,-152.301334,0.00017999,2]
[358075308,1744693849856,-500.0,0.00017999,2]
[358075309,1744693849865,-500.0,0.00017999,2]
[358075310,1744693849875,-561.14866221,0.00017999,2]
[358075311,1744693849884,-206.377441,0.00017999,2]
[358075312,1744693849893,-206.377441,0.00017999,2]
[358075313,1744693849902,-151.0,0.00017999,2]
[358075314,1744693849911,-151.0,0.00017999,2]
[358075315,1744693849921,-2093.0,0.00018,2]
[358075316,1744693849930,-150.971,0.00018,2]
[358075317,1744693849939,-528931.3410922,0.00018,2]
[358075318,1744693849960,-82516.00843531,0.00018,2]
[358075319,1744693850012,-500.0,0.00017997,2]
[358075320,1744693850026,-500.0,0.00017997,2]
[358075321,1744693850036,-7542.05377682,0.00018,2]
[358075322,1744693850048,-1415.86416849,0.00018,2]
[358075323,1744693850060,-3966.65735318,0.00018,2]
[358075324,1744693883770,5176.971771,0.00017472,2]
[358075325,1744694008544,242.01,0.00017219,2]
[358075326,1744694049467,1000.0,0.00017224,2]
[358075327,1744694056577,512.78938562,0.000265,120]
[358075328,1744694105071,577.64,0.00017,2]
[358075329,1744694106739,577.64,0.000175,2]
[358075330,1744694165021,160.82,0.00017132,2]
[358075331,1744694169993,250.0,0.00017132,2]
[358075334,1744694414768,500.0,0.00017107,2]
[358075335,1744694450128,-167.53,0.00017561,2]
[358075336,1744694450151,-250.0,0.00017625,2]
[358075337,1744694450174,-262.0788979,0.0001782,2]
[358075338,1744694450196,-300.0,0.00017917,2]
[358075339,1744694450219,-300.0,0.00017917,2]
[358075340,1744694450241,-2047.0,0.00017918,2]
[358075341,1744694450262,-1328.0,0.00017918,2]
[358075342,1744694450283,-1288.0,0.00017918,2]
[358075343,1744694450304,-657.3911021,0.00017918,2]
[358075344,1744694490673,3649.45,0.00017155,2]
[358075345,1744694581206,3400.0,0.000265,120]
[358075347,1744694617088,200.0,0.00017165,2]
[358075348,1744694710487,664.28843312,0.000154,2]
[358075349,1744694719978,1416.80129745,9e-05,2]
[358075350,1744694728113,327.85420184,0.00011,2]
[358075351,1744694736971,1665.24409137,9e-05,2]
[358075352,1744694756238,592.87367726,6.94e-05,2]
[358075354,1744694802863,225.88,0.00017194,2]
[358075369,1744695019615,554.75,0.00015291,2]
[358075370,1744695022024,-161.47111324,0.00017555,2]
[358075378,1744695031808,-393.27888676,0.00017555,2]
[358075380,1744695031819,-235.8710081,0.0001782,2]
[358075383,1744695031828,-55.07378039,0.00017917,2]
[358075384,1744695031840,-244.92621961,0.00017917,2]
[358075385,1744695031851,-133.6088979,0.00017918,2]
[358075386,1744695031861,-545.0,0.00017918,2]
[358075387,1744695031870,-694.05668639,0.00017918,2]
[358075388,1744695031881,-585.94331361,0.00017918,2]
[358075389,1744695031891,-64.80331473,0.00017918,2]
[358075390,1744695031923,-1324.26471012,0.00017918,2]
[358075391,1744695031934,-48.93197515,0.00017918,2]
[358075392,1744695031943,-908.0,0.00017918,2]
[358075393,1744695031952,-575.0,0.00017918,2]
[358075394,1744695031961,-4149.0,0.00017918,2]
[358075395,1744695031970,-1123.0,0.00017918,2]
[358075396,1744695031979,-152.0,0.00017918,2]
[358075397,1744695031988,-3965.0,0.00017918,2]
[358075398,1744695031998,-1288.0,0.00017918,2]
[358075399,1744695032008,-437.497,0.00017918,2]
[358075400,1744695032017,-201.71098808,0.00017959,2]
[358075401,1744695032027,-284.31149591,0.00017959,2]
[358075402,1744695032036,-14104.4328668,0.00017986,2]
[358075403,1744695032045,-977.43573418,0.00017986,2]
[358075404,1744695032057,-992.32608986,0.00017986,2]
[358075405,1744695032068,-1397.7819348,0.00017986,2]
[358075406,1744695032079,-2441.56500959,0.00017986,2]
[358075407,1744695032090,-3382.93927807,0.00017986,2]
[358075408,1744695032099,-505.3682756,0.00017986,2]
[358075409,1744695032108,-468.6558331,0.00017986,2]
[358075410,1744695032118,-500.0,0.00017987,2]
[358075411,1744695032127,-280.49400063,0.00017987,2]
[358075412,1744695032137,-64.3781651,0.00017988,2]
[358075413,1744695032148,-327.27843193,0.00017988,2]
[358075414,1744695032159,-11522.89565047,0.00017988,2]
[358075415,1744695032173,-6701.36293768,0.00017988,2]
[358075416,1744695032185,-3023.30869042,0.00017988,2]
[358075417,1744695032194,-1120.02325731,0.00017988,2]
[358075418,1744695032205,-6644.85022219,0.00017988,2]
[358075419,1744695032214,-6337.6989125,0.00017988,2]
[358075420,1744695032225,-661.8925592,0.00017988,2]
[358075421,1744695032235,-818.4168427,0.00017988,2]
[358075422,1744695032245,-613.8094212,0.00017988,2]
[358075423,1744695032255,-758.9630093,0.00017988,2]
[358075424,1744695032264,-2953.92901117,0.00017988,2]
[358075425,1744695032275,-7470.1188329,0.00017988,2]
[358075428,1744695038037,-1328.0,0.00017884,2]
[358075429,1744695038047,-406.33113787,0.00017884,2]
[358075430,1744695038096,-1640.66886213,0.00017884,2]
[358075431,1744695038106,-7542.52852055,0.00017988,2]
[358075432,1744695038117,-188.67801752,0.00017997,2]
[358075433,1744695038127,-500.0,0.00017997,2]
[358075434,1744695038136,-2463.0,0.00017997,2]
[358075435,1744695038146,-1354.0,0.00017997,2]
[358075436,1744695038156,-500.0,0.00017997,2]
[358075437,1744695038166,-500.0,0.00017997,2]
[358075438,1744695038175,-500.0,0.00017997,2]
[358075439,1744695038185,-150.0,0.00017997,2]
[358075440,1744695038195,-151.0,0.00017999,2]
[358075441,1744695038204,-151.0,0.00017999,2]
[358075442,1744695038214,-151.0,0.00017999,2]
[358075443,1744695038224,-151.0,0.00017999,2]
[358075444,1744695038234,-151.0,0.00017999,2]
[358075445,1744695038244,-152.217092,0.00017999,2]
[358075446,1744695038254,-151.0,0.00017999,2]
[358075447,1744695038263,-493.71918415,0.00017999,2]
[358075448,1744695038273,-511.31050877,0.00017999,2]
[358075449,1744695038287,-500.0,0.00017999,2]
[358075450,1744695038297,-500.0,0.00017999,2]
[358075451,1744695038306,-500.0,0.00017999,2]
[358075452,1744695038316,-533.56941121,0.00017999,2]
[358075453,1744695038326,-500.0,0.00017999,2]
[358075454,1744695038336,-500.0,0.00017999,2]
[358075455,1744695038346,-500.0,0.00017999,2]
[358075456,1744695038355,-500.0,0.00017999,2]
[358075457,1744695038365,-531.91109091,0.00017999,2]
[358075458,1744695038375,-500.0,0.00017999,2]
[358075459,1744695038385,-500.0,0.00017999,2]
[358075460,1744695038395,-500.0,0.00017999,2]
[358075461,1744695038404,-500.0,0.00017999,2]
[358075462,1744695038415,-521.23222812,0.00017999,2]
[358075463,1744695038424,-2000.0,0.00017999,2]
[358075465,1744695038624,-2000.0,0.00017999,2]
[358075466,1744695038633,-500.0,0.00017999,2]
[358075467,1744695038643,-2000.0,0.00017999,2]
[358075468,1744695038653,-500.0,0.00017999,2]
[358075469,1744695038662,-2000.0,0.00017999,2]
[358075470,1744695038671,-500.0,0.00017999,2]
[358075471,1744695038681,-2000.0,0.00017999,2]
[358075472,1744695038690,-500.0,0.00017999,2]
[358075473,1744695038699,-2000.0,0.00017999,2]
[358075474,1744695038708,-500.0,0.00017999,2]
[358075475,1744695038717,-2000.0,0.00017999,2]
[358075476,1744695038727,-298.36,0.00017999,2]
[358075477,1744695038735,-2000.0,0.00017999,2]
[358075478,1744695038745,-929.60669882,0.00017999,2]
[358075479,1744695038754,-500.0,0.00017999,2]
[358075480,1744695038763,-500.0,0.00017999,2]
[358075481,1744695038775,-500.0,0.00017999,2]
[358075482,1744695038785,-536.75249254,0.00017999,2]
[358075483,1744695038795,-500.0,0.00017999,2]
[358075484,1744695038804,-524.08487568,0.00017999,2]
[358075485,1744695038813,-497.13452838,0.00017999,2]
[358075486,1744695038823,-500.0,0.00017999,2]
[358075487,1744695038832,-500.0,0.00017999,2]
[358075488,1744695038841,-553.52533242,0.00017999,2]
[358075489,1744695038852,-512.7784685,0.00017999,2]
[358075490,1744695038861,-500.0,0.00017999,2]
[358075491,1744695038871,-500.0,0.00017999,2]
[358075492,1744695038881,-189.69,0.00017999,2]
[358075493,1744695038890,-508.38452348,0.00017999,2]
[358075495,1744695038899,-500.0,0.00017999,2]
[358075497,1744695038908,-273.97,0.00017999,2]
[358075499,1744695038918,-197.45658264,0.00017999,2]
[358075501,1744695038927,-500.0,0.00017999,2]
[358075503,1744695038936,-500.0,0.00017999,2]
[358075505,1744695038946,-500.0,0.00017999,2]
[358075507,1744695038955,-265.96860189,0.00017999,2]
[358075509,1744695038964,-555.40129222,0.00017999,2]
[358075511,1744695038974,-500.0,0.00017999,2]
[358075513,1744695038983,-500.0,0.00017999,2]
[358075515,1744695038992,-199.7853455,0.00017999,2]
[358075517,1744695039001,-535.15180415,0.00017999,2]
[358075518,1744695039011,-500.0,0.00017999,2]
[358075520,1744695039021,-500.0,0.00017999,2]
[358075521,1744695039030,-512.80684232,0.00017999,2]
[358075522,1744695039039,-500.0,0.00017999,2]
[358075523,1744695039047,-500.0,0.00017999,2]
[358075524,1744695039056,-500.0,0.00017999,2]
[358075525,1744695039065,-326.03421326,0.00017999,2]
[358075526,1744695039075,-500.0,0.00017999,2]
[358075527,1744695039083,-500.0,0.00017999,2]
[358075528,1744695039092,-500.0,0.00017999,2]
[358075529,1744695039101,-292.98394296,0.00017999,2]
[358075530,1744695039114,-218.60029477,0.00017999,2]
[358075531,1744695039123,-500.0,0.00017999,2]
[358075532,1744695039132,-500.85447943,0.00017999,2]
[358075533,1744695039142,-500.0,0.00017999,2]
[358075534,1744695039151,-507.77060765,0.00017999,2]
[358075535,1744695039159,-516.48895626,0.00017999,2]
[358075536,1744695039169,-201.27257917,0.00017999,2]
[358075537,1744695039178,-508.66079404,0.00017999,2]
[358075538,1744695039187,-500.0,0.00017999,2]
[358075539,1744695039196,-198.73386326,0.00017999,2]
[358075540,1744695039205,-500.0,0.00017999,2]
[358075541,1744695039214,-500.0,0.00017999,2]
[358075542,1744695039223,-500.0,0.00017999,2]
[358075543,1744695039233,-274.58518377,0.00017999,2]
[358075544,1744695039243,-486.56277448,0.00017999,2]
[358075545,1744695039253,-506.74509147,0.00017999,2]
[358075546,1744695039263,-500.0,0.00017999,2]
[358075547,1744695039273,-508.14519751,0.00017999,2]
[358075548,1744695039282,-500.0,0.00017999,2]
[358075549,1744695039291,-499.28338384,0.00017999,2]
[358075550,1744695039300,-500.0,0.00017999,2]
[358075551,1744695039309,-500.0,0.00017999,2]
[358075552,1744695039319,-500.0,0.00017999,2]
[358075553,1744695039328,-536.11895544,0.00017999,2]
[358075554,1744695039337,-424.60796765,0.00017999,2]
[358075555,1744695039347,-529.64177685,0.00017999,2]
[358075556,1744695039356,-629.98,0.00017999,2]
[358075557,1744695039366,-500.0,0.00017999,2]
[358075558,1744695039375,-500.0,0.00017999,2]
[358075559,1744695039384,-500.0,0.00017999,2]
[358075560,1744695039394,-363.24956083,0.00017999,2]
[358075561,1744695039403,-500.0,0.00017999,2]
[358075562,1744695039412,-576.34257457,0.00017999,2]
[358075563,1744695039421,-500.0,0.00017999,2]
[358075564,1744695039431,-175.44,0.00017999,2]
[358075565,1744695039440,-500.0,0.00017999,2]
[358075566,1744695039449,-500.0,0.00017999,2]
[358075567,1744695039460,-126.18646801,0.00017999,2]
[358075568,1744695039472,-373.81353199,0.00017999,2]
[358075569,1744695039482,-44.22146801,0.00017999,2]
[358075572,1744695040107,-455.77853199,0.00017999,2]
[358075573,1744695040116,-256.47,0.00017999,2]
[358075574,1744695040127,-500.0,0.00017999,2]
[358075575,1744695040136,-500.0,0.00017999,2]
[358075576,1744695040145,-500.0,0.00017999,2]
[358075577,1744695040154,-500.0,0.00017999,2]
[358075578,1744695040164,-500.25394925,0.00017999,2]
[358075579,1744695040173,-500.0,0.00017999,2]
[358075580,1744695040182,-500.0,0.00017999,2]
[358075581,1744695040191,-275.79,0.00017999,2]